bitfinex/quotes_SOLUSD_20241016
["timestamp","ask_amount","ask_price","bid_price","bid_amount"]
[1729112868056,4.38571072,154.75,154.69,11.56534532]
[1729112868287,4.38571072,154.74,154.69,11.56534532]
[1729112868485,6.4616,154.76,154.69,11.56534532]
[1729112868657,4.3853102,154.75,154.69,11.56534532]
[1729112868859,6.4616,154.76,154.69,11.56534532]
[1729112869074,4.38519993,154.75,154.69,11.56534532]
[1729112869384,32.72322183,154.78,154.69,11.56534532]
[1729112869567,6.462,154.75,154.69,11.56534532]
[1729112869882,4.38479407,154.74,154.69,11.56534532]
[1729112870985,4.38479407,154.74,154.68,20.0]
[1729112871175,10.84739407,154.74,154.68,31.56534532]
[1729112871485,6.4626,154.74,154.68,31.56534532]
[1729112873089,32.72322183,154.78,154.68,31.56534532]
[1729112873261,6.4621,154.75,154.68,31.56534532]
[1729112873462,4.38495261,154.74,154.68,31.56534532]
[1729112873769,6.4621,154.75,154.68,31.56534532]
[1729112873981,4.3848144,154.74,154.68,31.56534532]
[1729112874187,6.4621,154.75,154.68,31.56534532]
[1729112874497,4.38475263,154.74,154.68,31.56534532]
[1729112874781,6.4621,154.75,154.68,31.56534532]
[1729112874987,4.38480408,154.74,154.68,31.56534532]
[1729112875200,6.4621,154.75,154.68,31.56534532]
[1729112875393,4.38474517,154.74,154.68,31.56534532]
[1729112875595,6.4621,154.75,154.68,31.56534532]
[1729112875890,4.38474518,154.74,154.68,31.56534532]
[1729112876191,6.4621,154.75,154.68,31.56534532]
[1729112876385,4.38468871,154.74,154.68,31.56534532]
[1729112876688,6.4621,154.75,154.68,31.56534532]
[1729112876885,4.38469413,154.74,154.68,31.56534532]
[1729112877189,6.4621,154.75,154.68,31.56534532]
[1729112877490,4.38442393,154.74,154.68,31.56534532]
[1729112877792,6.4621,154.75,154.68,31.56534532]
[1729112878089,4.38441579,154.74,154.68,31.56534532]
[1729112878268,6.4621,154.75,154.68,31.56534532]
[1729112878470,4.38462166,154.74,154.68,31.56534532]
[1729112878667,6.4621,154.75,154.68,31.56534532]
[1729112878869,4.38462165,154.74,154.68,31.56534532]
[1729112879082,6.4621,154.75,154.68,31.56534532]
[1729112879283,4.38462209,154.74,154.68,31.56534532]
[1729112879492,6.4621,154.75,154.68,31.56534532]
[1729112879783,4.38472939,154.74,154.7,11.56534532]
[1729112879980,6.4616,154.76,154.7,11.56534532]
[1729112880188,4.38466554,154.75,154.7,11.56534532]
[1729112880501,4.38466554,154.74,154.7,11.56534532]
[1729112880695,6.4621,154.75,154.68,20.0]
[1729112880994,4.38474035,154.74,154.69,11.56534532]
[1729112881175,23.776884,154.77,154.69,11.56534532]
[1729112881378,6.4625,154.74,154.69,11.56534532]
[1729112883304,6.462,154.76,154.69,11.56534532]
[1729112883481,4.38539935,154.75,154.69,11.56534532]
[1729112883681,4.38539935,154.74,154.69,11.56534532]
[1729112883987,6.462,154.76,154.69,11.56534532]
[1729112884189,4.38539935,154.75,154.69,11.56534532]
[1729112884498,4.38539935,154.74,154.69,11.56534532]
[1729112884700,10.08872183,154.78,154.71,11.56534532]
[1729112885015,4.38434264,154.77,154.72,20.0]
[1729112885219,4.38425967,154.76,154.72,20.0]
[1729112885508,16.54952183,154.78,154.72,20.0]
[1729112885709,4.38373523,154.77,154.72,20.0]
[1729112885890,16.54952183,154.78,154.72,20.0]
[1729112886203,4.38374597,154.77,154.72,20.0]
[1729112886408,10.08872183,154.78,154.72,20.0]
[1729112886615,4.38336948,154.77,154.72,20.0]
[1729112886914,10.08872183,154.78,154.72,20.0]
[1729112887113,4.38331609,154.77,154.72,20.0]
[1729112887301,10.08872183,154.78,154.72,20.0]
[1729112887504,4.38298331,154.77,154.72,20.0]
[1729112887819,10.08872183,154.78,154.72,20.0]
[1729112888004,4.38303899,154.77,154.72,20.0]
[1729112888198,10.08872183,154.78,154.72,20.0]
[1729112888403,4.38333445,154.77,154.72,20.0]
[1729112888705,10.08872183,154.78,154.72,20.0]
[1729112889017,4.38289251,154.77,154.69,16.6488]
[1729112889312,4.38289251,154.77,154.63,8.51150988]
[1729112889313,6.4631,154.73,154.65,15.4332]
[1729112889515,4.38289251,154.72,154.65,15.4332]
[1729112891013,4.38710113,154.71,154.65,15.4332]
[1729112891214,6.4631,154.73,154.65,15.4332]
[1729112891510,4.38716019,154.72,154.65,15.4332]
[1729112891714,6.4633,154.72,154.65,15.4332]
[1729112892902,4.38760195,154.71,154.65,15.4332]
[1729112893104,6.4633,154.72,154.65,15.4332]
[1729112893307,4.3876248,154.71,154.65,15.4332]
[1729112893512,4.38791482,154.71,154.65,15.4332]
[1729112894027,6.4633,154.72,154.65,15.4332]
[1729112894215,4.3879742,154.71,154.65,15.4332]
[1729112894408,6.4633,154.72,154.65,15.4332]
[1729112894609,4.38827815,154.71,154.65,15.4332]
[1729112894823,6.4633,154.72,154.65,15.4332]
[1729112895018,4.38811468,154.71,154.65,15.4332]
[1729112895330,6.4629,154.73,154.65,15.4332]
[1729112895626,4.38846213,154.72,154.66,20.0]
[1729112895927,4.38846213,154.71,154.66,20.0]
[1729112896125,6.4625,154.74,154.66,20.0]
[1729112896629,4.38901796,154.73,154.66,20.0]
[1729112896824,4.38901796,154.72,154.66,20.0]
[1729112897029,4.38901796,154.71,154.66,20.0]
[1729112897235,6.4625,154.74,154.66,20.0]
[1729112897413,4.38917829,154.73,154.66,20.0]
[1729112897612,4.38917829,154.72,154.66,20.0]
[1729112897805,4.38917829,154.71,154.66,20.0]
[1729112898006,6.4625,154.74,154.66,20.0]
[1729112898216,4.38943815,154.73,154.66,20.0]
[1729112898621,4.38943815,154.72,154.66,20.0]
[1729112898934,4.38943815,154.71,154.66,20.0]
[1729112899119,6.4625,154.74,154.66,20.0]
[1729112899303,4.38987645,154.73,154.66,20.0]
[1729112899508,4.38987645,154.72,154.66,20.0]
[1729112899819,4.38987645,154.71,154.66,20.0]
[1729112900025,6.4625,154.74,154.66,20.0]
[1729112900220,4.38951034,154.73,154.66,20.0]
[1729112900415,10.85281034,154.72,154.65,26.99854532]
[1729112900621,4.38951034,154.71,154.65,26.99854532]
[1729112900930,4.38937055,154.7,154.65,15.4332]
[1729112901226,23.50003932,154.76,154.6,13.22041853]
[1729112901227,43.976884,154.74,154.62,16.2022]
[1729112901429,43.976884,154.74,154.6,11.61185591]
[1729112901430,6.4654,154.67,154.6,11.61185591]
[1729112901843,23.776884,154.7,154.59,6.1229]
[1729112902019,6.4658,154.66,154.59,6.1229]
[1729112902710,6.4658,154.66,154.58,27.86954532]
[1729112903103,6.4666,154.65,154.56,11.56534532]
[1729112903303,6.4667,154.64,154.56,11.56534532]
[1729112903611,6.4674,154.62,154.55,18.19154532]
[1729112903811,6.4674,154.62,154.55,11.56534532]
[1729112904012,6.4674,154.62,154.54,15.346]
[1729112904529,23.776884,154.64,154.51,15.09170988]
[1729112904732,76.94510094,154.7,154.47,6.3298]
[1729112904733,0.1,154.6,154.47,6.3298]
[1729112904938,4.48546274,154.59,154.52,1.063829]
[1729112905113,23.776884,154.57,154.52,1.063829]
[1729112905315,50.2,154.61,154.52,1.063829]
[1729112905639,4.47679351,154.6,154.52,1.063829]
[1729112905812,6.4696,154.57,154.52,1.063829]
[1729112906232,43.286884,154.59,154.52,1.063829]
[1729112906432,6.4708,154.54,154.52,1.063829]
[1729112906910,6.4712,154.53,154.52,1.063829]
[1729112907717,29.2231,154.55,154.52,1.063829]
[1729112908015,30.248084,154.53,154.52,1.063829]
[1729112909130,60.248084,154.53,154.52,1.063829]
[1729112909643,80.248084,154.53,154.52,1.063829]
[1729112909817,23.776884,154.52,154.43,0.6232437]
[1729112910015,6.4734,154.48,154.43,0.6232437]
[1729112910417,6.475,154.44,154.43,0.6232437]
[1729112910618,53.1574,154.47,154.43,0.6232437]
[1729112910619,6.4746,154.45,154.43,0.6232437]
[1729112910826,59.6315,154.47,154.43,0.6232437]
[1729112911235,23.776884,154.46,154.43,0.6232437]
[1729112911413,30.251884,154.44,154.43,0.6232437]
[1729112911845,50.251884,154.44,154.43,0.6232437]
[1729112912218,80.251884,154.44,154.43,0.6232437]
[1729112912415,73.976884,154.44,154.3,24.51429542]
[1729112912619,6.4771,154.39,154.3,6.3687]
[1729112912924,6.4771,154.39,154.31,20.0]
[1729112913941,6.4775,154.38,154.3,6.3687]
[1729112914437,6.4775,154.38,154.29,15.6335]
[1729112915440,6.478,154.37,154.27,0.6232437]
[1729112915746,15.5569,154.38,154.27,0.6232437]
[1729112915747,6.4784,154.36,154.27,0.6232437]
[1729112916246,6.479,154.35,154.27,0.6232437]
[1729112917134,6.4792,154.34,154.27,0.6232437]
[1729112918260,6.4796,154.33,154.27,0.6232437]
[1729112918438,23.876884,154.35,154.27,0.6232437]
[1729112918631,6.48,154.32,154.27,0.6232437]
[1729112918950,6.4806,154.31,154.27,0.6232437]
[1729112919148,6.48,154.33,154.27,0.6232437]
[1729112919335,23.876884,154.35,154.27,0.6232437]
[1729112919651,6.4808,154.31,154.27,0.6232437]
[1729112919949,0.2,154.34,154.27,0.6232437]
[1729112920134,0.1,154.33,154.27,0.6232437]
[1729112920338,0.1,154.31,154.27,0.6232437]
[1729112920652,23.776884,154.3,154.27,0.6232437]
[1729112921054,6.4816,154.29,154.27,0.6232437]
[1729112921250,6.4817,154.28,154.27,0.6232437]
[1729112921457,30.258584,154.28,154.27,0.6232437]
[1729112922430,50.358584,154.28,154.27,0.6232437]
[1729112922825,50.458584,154.28,154.27,0.6232437]
[1729112923065,6.4842,154.23,154.12,0.6232437]
[1729112923250,0.1,154.26,154.12,18.76883912]
[1729112923550,0.2,154.25,154.12,18.76883912]
[1729112923755,0.1,154.26,154.12,0.6232437]
[1729112923940,0.1,154.26,154.12,18.76883912]
[1729112923941,6.4838,154.23,154.12,18.76883912]
[1729112924144,0.1,154.26,154.12,17.76883912]
[1729112924663,6.4838,154.23,154.12,17.76883912]
[1729112924840,0.1,154.26,154.12,17.76883912]
[1729112925148,6.484,154.23,154.14,18.14559542]
[1729112925353,36.4843,154.22,154.14,18.14559542]
[1729112925537,30.0,154.22,154.14,18.14559542]
[1729112926051,36.4843,154.22,154.14,18.14559542]
[1729112926247,30.0,154.22,154.14,18.14559542]
[1729112926554,30.0,154.22,154.16,18.14559542]
[1729112927233,30.0,154.22,154.11,21.1863]
[1729112927234,30.0,154.22,154.14,18.14559542]
[1729112927967,30.0,154.22,154.12,18.14559542]
[1729112928169,30.0,154.22,154.13,20.0]
[1729112928748,36.8587,154.22,154.1,18.14559542]
[1729112928972,36.8587,154.22,154.07,22.1369]
[1729112928973,15.8891,154.2,154.07,22.1369]
[1729112929272,15.8891,154.2,153.97,258.7232437]
[1729112929273,0.1,154.14,153.97,23.1871437]
[1729112929443,23.776884,154.17,154.05,18.14559542]
[1729112929641,6.4868,154.16,154.07,18.14559542]
[1729112929946,23.776884,154.15,154.05,18.14559542]
[1729112930142,0.1,154.15,153.98,0.1]
[1729112930340,6.4881,154.13,154.03,18.14559542]
[1729112930575,6.4876,154.14,154.03,18.14559542]
[1729112930867,23.776884,154.17,154.03,18.14559542]
[1729112931075,30.263184,154.17,154.05,18.14559542]
[1729112931370,6.4854,154.2,154.1,20.0]
[1729112931543,22.4795,154.23,154.1,20.0]
[1729112931737,6.4848,154.21,154.1,20.0]
[1729112932143,6.4851,154.2,154.1,20.0]
[1729112933665,6.4867,154.16,154.07,16.5618]
[1729112933869,6.4873,154.15,154.07,16.5618]
[1729112934454,6.4867,154.17,154.07,16.5618]
[1729112934656,6.4868,154.16,154.07,16.5618]
[1729112935256,30.262484,154.19,154.08,20.0]
[1729112936243,23.776884,154.19,154.08,20.0]
[1729112936448,6.4859,154.18,154.08,20.0]
[1729112937061,6.77618144,154.2,154.08,38.14559542]
[1729112937262,6.4846,154.21,154.09,18.14559542]
[1729112937455,6.4846,154.21,154.1,20.0]
[1729112938578,6.4851,154.2,154.1,20.0]
[1729112939661,30.1,154.22,154.1,20.0]
[1729112939856,6.4858,154.19,154.08,20.0]
[1729112940261,6.4851,154.2,154.08,20.0]
[1729112940579,23.776884,154.21,154.08,20.0]
[1729112940788,6.4865,154.17,154.08,20.0]
[1729112941365,6.486,154.18,154.08,20.0]
[1729112941577,23.776884,154.21,154.08,20.0]
[1729112941578,6.485,154.21,154.08,20.0]
[1729112941759,6.4858,154.19,154.08,20.0]
[1729112945674,30.0,154.22,154.08,20.0]
[1729112945980,6.4847,154.21,154.1,20.0]
[1729112948684,30.0,154.22,154.1,20.0]
[1729112948859,36.4843,154.22,154.1,20.0]
[1729112950177,36.4843,154.22,154.12,20.0]
[1729112952262,30.0,154.22,154.14,20.0]
[1729112955268,30.0,154.22,154.16,20.0]
[1729112955484,7.60975771,154.28,154.18,20.0]
[1729112955683,6.4818,154.28,154.18,20.0]
[1729112956500,6.4822,154.27,154.18,20.0]
[1729112956669,6.4826,154.26,154.18,20.0]
[1729112956874,6.4834,154.24,154.17,6.6324]
[1729112957884,6.4841,154.23,154.13,21.9168]
[1729112958202,6.4862,154.18,154.09,22.8974]
[1729112958678,6.4856,154.19,154.09,22.8974]
[1729112958874,15.2686,154.22,154.09,22.8974]
[1729112959074,21.7531,154.22,154.09,22.8974]
[1729112959475,6.4847,154.21,154.1,20.0]
[1729112961384,6.4842,154.22,154.1,20.0]
[1729112962414,0.1,154.23,154.1,20.0]
[1729112962575,0.1,154.23,154.09,22.8974]
[1729112962576,6.4866,154.17,154.09,22.8974]
[1729112963491,6.4859,154.18,154.09,22.8974]
[1729112963696,6.4859,154.18,154.1,20.0]
[1729112966993,6.4859,154.18,154.11,0.35461]
[1729112967784,6.77739209,154.22,154.11,0.35461]
[1729112967986,6.4849,154.21,154.11,0.35461]
[1729112968183,23.776884,154.23,154.11,0.35461]
[1729112968184,6.4841,154.23,154.11,0.35461]
[1729112968484,4.39425371,154.22,154.11,0.35461]
[1729112968684,6.4842,154.22,154.11,0.35461]
[1729112970914,6.77596479,154.25,154.12,20.0]
[1729112971093,4.39437104,154.24,154.14,35.8865]
[1729112971290,6.4831,154.25,154.15,6.6491]
[1729112971489,4.39416983,154.24,154.15,6.6491]
[1729112971716,6.4831,154.25,154.16,20.0]
[1729112971913,4.39406305,154.24,154.16,20.0]
[1729112972116,6.4831,154.25,154.16,20.0]
[1729112972420,4.39381779,154.24,154.16,20.0]
[1729112972623,6.4831,154.25,154.16,20.0]
[1729112972798,4.39372358,154.24,154.16,20.0]
[1729112972997,6.4831,154.25,154.16,20.0]
[1729112973195,4.39367136,154.24,154.16,20.0]
[1729112973394,6.4831,154.25,154.16,20.0]
[1729112973599,4.39338074,154.24,154.16,20.0]
[1729112973819,6.4831,154.25,154.16,20.0]
[1729112973994,4.39334795,154.24,154.16,20.0]
[1729112974195,6.4831,154.25,154.16,20.0]
[1729112974403,4.39308103,154.24,154.16,20.0]
[1729112974611,15.2737,154.26,154.16,20.0]
[1729112974813,6.4842,154.23,154.15,6.6491]
[1729112975111,6.4847,154.21,154.14,15.8865]
[1729112976416,6.4853,154.2,154.14,15.8865]
[1729112976718,6.4853,154.2,154.11,6.44191]
[1729112977491,6.4853,154.2,154.12,20.0]
[1729112980612,23.776884,154.23,154.12,20.0]
[1729112980821,6.4855,154.19,154.12,20.0]
[1729112982017,6.4843,154.22,154.12,20.0]
[1729112982221,10.8823024,154.21,154.12,20.0]
[1729112982418,4.3975024,154.2,154.12,20.0]
[1729112984299,1.12813776,154.24,154.12,20.0]
[1729112984623,10.88205917,154.23,154.12,20.0]
[1729112984838,4.39815917,154.22,154.12,20.0]
[1729112985007,6.4835,154.24,154.12,20.0]
[1729112985199,4.39811988,154.23,154.12,20.0]
[1729112985401,4.39811988,154.22,154.12,20.0]
[1729112985603,6.4835,154.24,154.12,20.0]
[1729112985806,4.39784636,154.23,154.12,20.0]
[1729112986011,4.39784636,154.22,154.12,20.0]
[1729112986309,6.4835,154.24,154.12,20.0]
[1729112986511,4.39748193,154.23,154.12,20.0]
[1729112986709,4.39748193,154.22,154.12,20.0]
[1729112987026,6.4835,154.24,154.12,20.0]
[1729112987226,4.3972421,154.23,154.12,20.0]
[1729112987529,4.3972421,154.22,154.12,20.0]
[1729112987720,6.4835,154.24,154.12,20.0]
[1729112988026,4.3976702,154.23,154.12,20.0]
[1729112988229,4.3976702,154.22,154.12,20.0]
[1729112990726,6.484,154.23,154.12,20.0]
[1729112991110,4.39810593,154.22,154.12,20.0]
[1729112991313,6.484,154.23,154.12,20.0]
[1729112991616,4.39836351,154.22,154.12,20.0]
[1729112991937,6.484,154.23,154.12,20.0]
[1729112992734,4.39677759,154.22,154.12,20.0]
[1729112992944,15.2737,154.26,154.14,15.2916]
[1729112993110,4.39669203,154.25,154.15,20.0]
[1729112993323,21.7562,154.26,154.15,20.0]
[1729112993508,4.39589863,154.25,154.15,20.0]
[1729112993720,21.7562,154.26,154.15,20.0]
[1729112994030,4.3959441,154.25,154.15,20.0]
[1729112994333,21.7562,154.26,154.15,20.0]
[1729112994521,4.39527603,154.25,154.15,20.0]
[1729112994725,6.4822,154.27,154.17,20.0]
[1729112995031,4.39514079,154.26,154.17,20.0]
[1729112995208,6.4822,154.27,154.17,20.0]
[1729112995838,4.39392632,154.26,154.17,20.0]
[1729112996038,6.4822,154.27,154.17,20.0]
[1729113000640,6.4827,154.26,154.17,20.0]
[1729113002049,6.4821,154.27,154.17,20.0]
[1729113002447,6.4826,154.26,154.17,20.0]
[1729113002828,6.483,154.25,154.17,20.0]
[1729113003024,23.776884,154.27,154.16,6.4794]
[1729113003336,6.4838,154.23,154.16,6.4794]
[1729113003950,6.4834,154.24,154.16,6.4794]
[1729113007353,6.4843,154.22,154.14,15.2916]
[1729113007558,6.4843,154.22,154.15,20.0]
[1729113008445,16.3488,154.24,154.15,20.0]
[1729113009450,22.8323,154.24,154.15,20.0]
[1729113011550,6.4841,154.23,154.15,20.0]
[1729113011754,6.4845,154.22,154.15,20.0]
[1729113012059,6.4838,154.23,154.15,20.0]
[1729113013448,6.4846,154.22,154.14,15.2916]
[1729113013649,6.4847,154.21,154.14,15.2916]
[1729113013850,17.47699378,154.24,154.14,15.2916]
[1729113014044,6.4844,154.22,154.14,15.2916]
[1729113014764,16.3488,154.24,154.14,15.2916]
[1729113015059,6.4846,154.21,154.14,15.2916]
[1729113015269,6.4846,154.21,154.13,20.0]
[1729113016142,30.0,154.17,154.13,20.0]
[1729113017651,6.4846,154.21,154.13,20.0]
[1729113018370,39.986584,154.23,154.12,6.0972]
[1729113018577,6.4871,154.16,154.11,0.35461]
[1729113018863,6.4876,154.14,154.11,0.35461]
[1729113019656,6.1603,154.17,154.11,0.35461]
[1729113019657,6.4872,154.15,154.11,0.35461]
[1729113020241,6.488,154.13,154.11,0.35461]
[1729113022164,30.0,154.12,154.11,0.35461]
[1729113022548,6.488,154.13,154.11,0.35461]
[1729113024941,16.5716,154.15,154.11,0.35461]
[1729113025142,6.4876,154.14,154.11,0.35461]
[1729113025353,23.0588,154.15,154.11,0.35461]
[1729113025553,30.0,154.12,154.11,0.35461]
[1729113037675,30.0,154.12,154.11,0.35461]
[1729113043312,36.4884,154.12,154.11,0.35461]
[1729113043619,42.9751,154.12,154.11,0.35461]
[1729113043781,42.8751,154.12,154.11,0.35461]
[1729113044498,72.737784,154.12,154.11,0.35461]
[1729113044697,42.737784,154.12,154.11,0.35461]
[1729113044871,36.651984,154.12,154.11,0.35461]
[1729113045495,50.451984,154.12,154.11,0.35461]
[1729113048181,26.6751,154.12,154.11,0.35461]
[1729113050973,20.2884,154.12,154.11,0.35461]
[1729113051226,13.8,154.12,154.11,0.35461]
[1729113051406,20.2884,154.12,154.11,0.35461]
[1729113056494,20.2884,154.12,154.05,0.127673]
[1729113056698,30.0,154.11,154.06,0.354609]
[1729113061409,10.13098453,154.15,154.07,16.1586]
[1729113061583,10.13098453,154.15,154.08,20.0]
[1729113063824,10.13098453,154.15,154.09,6.2874]
[1729113064122,13.26326339,154.22,154.1,36.1456]
[1729113064415,4.39461801,154.21,154.1,36.1456]
[1729113064596,4.39461801,154.2,154.1,36.1456]
[1729113064786,6.4843,154.22,154.1,36.1456]
[1729113064985,4.39399661,154.21,154.1,36.1456]
[1729113065207,6.4843,154.22,154.1,36.1456]
[1729113065390,4.39203887,154.21,154.1,36.1456]
[1729113065586,6.4843,154.22,154.1,36.1456]
[1729113065812,4.3920077,154.21,154.1,36.1456]
[1729113065991,16.0769,154.23,154.1,36.3456]
[1729113065992,6.4839,154.23,154.1,36.3456]
[1729113066185,4.39235736,154.22,154.13,16.0]
[1729113066390,7.61159584,154.24,154.14,20.0]
[1729113066721,4.38945861,154.23,154.14,20.0]
[1729113066920,7.61159584,154.24,154.14,20.0]
[1729113067302,6.4834,154.24,154.14,20.0]
[1729113067501,6.77748157,154.26,154.14,20.0]
[1729113067707,28.16353905,154.25,154.14,20.0]
[1729113068030,4.38665505,154.24,154.14,20.0]
[1729113068330,23.776884,154.25,154.14,20.0]
[1729113068553,6.4843,154.22,154.14,20.0]
[1729113075115,6.4831,154.25,154.14,20.0]
[1729113075437,6.4834,154.24,154.14,20.0]
[1729113080928,6.77748157,154.26,154.14,20.0]
[1729113081131,23.776884,154.25,154.14,20.0]
[1729113081334,23.776884,154.21,154.11,6.0321]
[1729113081521,23.776884,154.21,154.09,16.0691]
[1729113081717,6.4876,154.14,154.09,16.0691]
[1729113082233,6.4873,154.15,154.09,16.0691]
[1729113084758,23.776884,154.18,154.09,16.0691]
[1729113084918,6.4889,154.11,154.05,16.775373]
[1729113085625,23.776884,154.15,154.05,0.127673]
[1729113085831,6.4893,154.1,154.05,0.127673]
[1729113086519,16.2186,154.15,154.05,0.127673]
[1729113086716,6.4887,154.12,154.05,0.127673]
[1729113087124,16.2186,154.15,154.05,0.127673]
[1729113087339,6.4893,154.1,154.05,0.127673]
[1729113088020,30.0,154.09,154.05,0.127673]
[1729113098753,6.77714432,154.15,154.11,0.2]
[1729113098983,25.25310904,154.26,154.12,44.88362215]
[1729113099157,6.4833,154.25,154.12,26.1712]
[1729113099366,6.4833,154.25,154.14,20.0]
[1729113099666,6.4833,154.25,154.15,27.02305175]
[1729113100155,31.73570904,154.26,154.15,27.02305175]
[1729113100757,31.73570904,154.26,154.13,20.0]
[1729113100961,6.4843,154.22,154.12,6.1712]
[1729113101257,6.4859,154.18,154.08,6.0773]
[1729113101558,23.776884,154.18,154.08,6.0773]
[1729113119481,30.262784,154.18,154.08,6.0773]
[1729113119903,30.262784,154.18,154.06,16.809009]
[1729113120086,30.262784,154.18,154.07,20.0]
[1729113120598,23.776884,154.18,154.07,20.0]
[1729113120987,15.0036,154.19,154.07,20.0]
[1729113123479,23.776884,154.18,154.07,20.0]
[1729113124107,23.776884,154.16,154.07,20.0]
[1729113125781,30.263684,154.16,154.07,20.0]
[1729113130313,6.4874,154.15,154.07,20.0]
[1729113130609,23.776884,154.13,154.06,0.354609]
[1729113131523,40.014084,154.13,154.06,0.354609]
[1729113131694,6.4886,154.12,154.06,0.354609]
[1729113131895,23.776884,154.11,154.06,0.354609]
[1729113132212,6.489,154.11,154.06,0.354609]
[1729113132812,23.776884,154.1,154.06,0.354609]
[1729113135527,6.489,154.11,154.06,0.354609]
[1729113136228,22.7252,154.13,154.06,0.354609]
[1729113139422,6.4888,154.11,154.06,0.354609]
[1729113150938,10.13251645,154.12,154.06,0.354609]
[1729113151115,6.489,154.11,154.06,0.354609]
[1729113152727,10.13251645,154.12,154.06,0.354609]
[1729113153117,23.776884,154.12,154.06,0.354609]
[1729113154421,6.4891,154.11,154.06,0.354609]
[1729113159360,6.4895,154.1,154.06,0.354609]
[1729113163435,16.62208072,154.11,154.06,0.354609]
[1729113164242,10.13328072,154.11,154.06,0.354609]
[1729113165325,10.13328072,154.11,154.07,21.5678]
[1729113166933,10.13328072,154.11,154.06,0.354609]
[1729113186258,16.62228072,154.11,154.06,0.354609]
[1729113186457,10.13328072,154.11,154.06,0.354609]
[1729113187484,6.4895,154.1,154.06,0.354609]
[1729113189271,6.4898,154.09,154.06,0.354609]
[1729113189458,30.267384,154.07,154.06,0.354609]
[1729113189757,34.67067307,154.07,154.06,0.354609]
[1729113191257,30.267384,154.07,154.06,0.354609]
[1729113192574,34.66615004,154.07,154.06,0.354609]
[1729113193155,30.267384,154.07,154.06,0.354609]
[1729113201084,6.4905,154.07,154.06,0.354609]
[1729113201970,30.267384,154.07,154.06,0.354609]
[1729113203893,60.267384,154.07,154.06,0.354609]
[1729113206688,30.267384,154.07,154.06,0.354609]
[1729113209780,60.267384,154.07,154.06,0.354609]
[1729113214191,30.267384,154.07,154.06,0.354609]
[1729113218208,6.4905,154.07,154.06,0.354609]
[1729113222513,30.267384,154.07,154.06,0.354609]
[1729113222710,6.4902,154.08,154.06,0.354609]
[1729113226714,1.12922504,154.09,154.06,0.354609]
[1729113226715,6.4897,154.09,154.06,0.354609]
[1729113235226,4.40438897,154.08,154.06,0.354609]
[1729113235516,6.4897,154.09,154.06,0.354609]
[1729113235712,4.4043573,154.08,154.06,0.354609]
[1729113235944,6.4897,154.09,154.06,0.354609]
[1729113236108,4.40443102,154.08,154.06,0.354609]
[1729113236421,6.4897,154.09,154.06,0.354609]
[1729113236598,4.40424951,154.08,154.06,0.354609]
[1729113236804,6.4897,154.09,154.06,0.354609]
[1729113236995,16.62289401,154.1,154.06,0.354609]
[1729113237305,4.40394401,154.09,154.06,0.354609]
[1729113237622,16.62289401,154.1,154.06,0.354609]
[1729113237916,4.40389857,154.09,154.06,0.354609]
[1729113238093,16.62289401,154.1,154.06,0.354609]
[1729113238293,4.40362659,154.09,154.06,0.354609]
[1729113238493,16.62289401,154.1,154.06,0.354609]
[1729113238717,4.40362698,154.09,154.06,0.354609]
[1729113238900,16.62279401,154.1,154.06,0.354609]
[1729113239421,6.4893,154.1,154.06,0.354609]
[1729113242345,4.40166689,154.09,154.06,0.354609]
[1729113242621,6.4893,154.1,154.06,0.354609]
[1729113257153,10.13232078,154.11,154.06,0.354609]
[1729113257360,10.13232078,154.11,154.06,20.354609]